fUSD/lending_fUSD_20251017
["ID","MTS","AMOUNT","RATE_DAILY","PERIOD"]
[391639004,1760712695132,-733.45,0.00027945,17]
[391639005,1760712695142,-2292.25,0.00027945,17]
[391639006,1760712695151,-500.0,0.00027945,17]
[391639007,1760712695161,-957.62,0.00027945,17]
[391639008,1760712695171,-1000.0,0.00027945,30]
[391639009,1760712695179,-645.32,0.00027945,17]
[391639010,1760712695189,-1164.89,0.00027945,14]
[391639011,1760712695198,-4111.23,0.00027945,2]
[391639012,1760712695207,-1020.03,0.00027945,17]
[391639013,1760712695217,-2210.79,0.00027945,17]
[391639014,1760712695227,-500.0,0.00027945,17]
[391639015,1760712695236,-500.0,0.00027945,17]
[391639016,1760712695245,-1365.45,0.00027945,17]
[391639017,1760712695255,-1008.76,0.00027945,17]
[391639018,1760712695264,-1563.72,0.00027945,17]
[391639019,1760712695274,-500.0,0.00027945,17]
[391639020,1760712695283,-1294.16,0.00027945,14]
[391639021,1760712695292,-616.97,0.00027945,17]
[391639022,1760712695302,-2395.85,0.00027945,17]
[391639023,1760712695311,-1000.0,0.00027945,17]
[391639024,1760712695320,-1973.58,0.00027945,17]
[391639025,1760712695330,-2145.9,0.00027945,17]
[391639026,1760712695339,-1133.0,0.00027945,17]
[391639027,1760712695348,-897.1,0.00027945,17]
[391639028,1760712695359,-2887.99,0.00027945,17]
[391639029,1760712695369,-191.06997068,0.00027945,17]
[391639030,1760712695378,-975.46,0.00027945,17]
[391639031,1760712695388,-500.0,0.00027945,17]
[391639032,1760712695398,-500.0,0.00027945,17]
[391639033,1760712695408,-1037.54,0.00027945,17]
[391639034,1760712695418,-500.0,0.00027945,17]
[391639035,1760712695427,-500.0,0.00027945,17]
[391639036,1760712695436,-815.66,0.00027945,17]
[391639037,1760712695445,-500.0,0.00027945,17]
[391639038,1760712695455,-500.0,0.00027945,6]
[391639039,1760712695464,-500.0,0.00027945,17]
[391639040,1760712695474,-500.0,0.00027945,17]
[391639041,1760712695484,-2321.61,0.00027945,17]
[391639042,1760712695493,-4259.73,0.00027945,17]
[391639043,1760712695503,-209.92,0.00027945,8]
[391639044,1760712695512,-500.0,0.00027945,17]
[391639045,1760712695522,-1588.12,0.00027945,17]
[391639046,1760712695532,-2127.98,0.00027945,17]
[391639047,1760712695541,-500.0,0.00027945,17]
[391639048,1760712695551,-500.0,0.00027945,17]
[391639049,1760712695560,-1336.95,0.00027945,17]
[391639050,1760712695570,-500.0,0.00027945,17]
[391639051,1760712695580,-500.0,0.00027945,17]
[391639052,1760712695589,-500.0,0.00027945,17]
[391639053,1760712695598,-2000.0,0.0002797,120]
[391639054,1760712695610,-500.0,0.00028,60]
[391639055,1760712695620,-1817.07725445,0.00028,120]
[391639056,1760712695633,-1398.08065095,0.00028,30]
[391639057,1760712695642,-163.0,0.00028,2]
[391639058,1760712695651,-282.08,0.00028,2]
[391639059,1760712695661,-242.5,0.00028,2]
[391639060,1760712695671,-164.0,0.00028,2]
[391639061,1760712695680,-5800.0,0.00028,2]
[391639062,1760712695690,-200.0,0.00028,120]
[391639063,1760712695700,-1000.0,0.00028,2]
[391639064,1760712695710,-191.82334993,0.00028033,7]
[391639065,1760712695719,-355.23349943,0.00028055,60]
[391639066,1760712695728,-300.0,0.00028078,34]
[391639067,1760712695738,-168.0,0.0002809,2]
[391639068,1760712695747,-168.0,0.00028091,2]
[391639069,1760712695757,-2780.06,0.000281,7]
[391639070,1760712695767,-2784.74,0.000281,2]
[391639071,1760712695776,-24566.88,0.000281,2]
[391639072,1760712695785,-168.0,0.00028102,2]
[391639073,1760712695795,-168.0,0.00028182,2]
[391639074,1760712695804,-151.0,0.00028216,7]
[391639075,1760712695813,-500.0,0.00028219,17]
[391639076,1760712695823,-522.4,0.00028219,17]
[391639077,1760712695832,-285.70245973,0.00028219,17]
[391639078,1760712695842,-869.21,0.00028219,17]
[391639079,1760712695851,-1021.91,0.00028219,17]
[391639080,1760712695863,-500.0,0.00028219,17]
[391639081,1760712695872,-537.34,0.00028219,17]
[391639082,1760712695882,-1474.93,0.00028219,17]
[391639083,1760712695891,-666.77,0.00028219,17]
[391639084,1760712695900,-500.0,0.00028219,17]
[391639085,1760712695910,-500.0,0.00028219,2]
[391639086,1760712695919,-500.0,0.00028219,17]
[391639087,1760712695928,-973.0,0.00028219,17]
[391639088,1760712695937,-1074.19,0.00028219,17]
[391639089,1760712695947,-500.0,0.00028219,17]
[391639090,1760712695957,-151.0,0.00028219,30]
[391639091,1760712695966,-1458.22,0.00028219,7]
[391639092,1760712695975,-500.0,0.00028219,17]
[391639093,1760712695984,-721.32,0.00028219,2]
[391639094,1760712695994,-505.59,0.00028219,2]
[391639095,1760712696003,-837.59,0.00028219,17]
[391639096,1760712696013,-2355.17,0.00028219,17]
[391639097,1760712696023,-513.36,0.00028219,17]
[391639098,1760712696033,-500.0,0.00028219,17]
[391639099,1760712696043,-500.0,0.00028219,17]
[391639100,1760712696053,-500.0,0.00028219,17]
[391639101,1760712696063,-500.0,0.00028219,17]
[391639102,1760712696073,-1192.44,0.00028219,17]
[391639103,1760712696083,-654.23,0.00028219,17]
[391639104,1760712696092,-500.0,0.00028219,17]
[391639105,1760712696102,-2969.48,0.00028219,17]
[391639106,1760712696114,-500.0,0.00028219,17]
[391639107,1760712696123,-500.0,0.00028219,17]
[391639108,1760712696133,-151.0,0.00028219,30]
[391639109,1760712696142,-151.0,0.00028219,30]
[391639110,1760712696151,-500.17,0.00028219,17]
[391639111,1760712696161,-1595.99,0.00028219,17]
[391639112,1760712696170,-500.0,0.00028219,17]
[391639113,1760712696179,-2220.63,0.00028219,17]
[391639114,1760712696189,-366.193917,0.00028219,30]
[391639115,1760712696198,-151.0,0.00028219,30]
[391639116,1760712696208,-500.0,0.00028219,17]
[391639117,1760712696218,-366.193917,0.00028219,30]
[391639118,1760712696227,-366.193917,0.00028219,30]
[391639119,1760712696237,-167.706689,0.00028219,30]
[391639120,1760712696247,-151.0,0.00028219,30]
[391639121,1760712696256,-366.19392064,0.00028219,30]
[391639122,1760712696265,-167.706689,0.00028219,30]
[391639123,1760712696276,-151.0,0.00028219,30]
[391639124,1760712696285,-167.706689,0.00028219,30]
[391639125,1760712696294,-167.706689,0.00028219,30]
[391639126,1760712696304,-329.92530026,0.00028219,17]
[391639127,1760712696314,-554.04,0.00028219,17]
[391639128,1760712696323,-619.82,0.00028219,17]
[391639129,1760712696333,-950.66,0.00028219,17]
[391639130,1760712696343,-151.0,0.00028219,30]
[391639131,1760712696353,-151.0,0.00028219,30]
[391639132,1760712696365,-1855.6,0.00028219,17]
[391639133,1760712696376,-722.3,0.00028219,17]
[391639134,1760712696386,-151.0,0.00028219,30]
[391639135,1760712696395,-500.0,0.00028219,17]
[391639136,1760712696404,-500.0,0.00028219,17]
[391639137,1760712696414,-1437.69,0.00028219,17]
[391639138,1760712696423,-2212.04,0.00028219,17]
[391639139,1760712696433,-500.0,0.00028219,17]
[391639140,1760712696442,-1120.11,0.00028219,17]
[391639141,1760712696452,-500.0,0.00028219,17]
[391639142,1760712696461,-106.08613775,0.00028219,17]
[391639143,1760712696487,-393.91386225,0.00028219,17]
[391639144,1760712696496,-500.0,0.00028219,17]
[391639145,1760712696506,-854.16,0.00028219,17]
[391639146,1760712696515,-632.58,0.00028219,17]
[391639147,1760712696525,-500.0,0.00028219,17]
[391639148,1760712696535,-870.27,0.00028219,17]
[391639149,1760712696545,-735.48,0.00028219,17]
[391639150,1760712696555,-257.95191278,0.00028219,17]
[391639151,1760712696566,-1633.1,0.00028219,17]
[391639152,1760712696575,-500.0,0.00028219,17]
[391639153,1760712696585,-500.0,0.00028219,17]
[391639154,1760712696594,-500.0,0.00028219,17]
[391639155,1760712696604,-500.0,0.00028219,17]
[391639156,1760712696616,-134.71296306,0.00028219,17]
[391639157,1760712696632,-717.48703694,0.00028219,17]
[391639158,1760712696642,-665.63,0.00028219,17]
[391639159,1760712696651,-733.45,0.00028219,17]
[391639160,1760712696662,-2292.25,0.00028219,17]
[391639161,1760712696672,-500.0,0.00028219,17]
[391639162,1760712696682,-957.62,0.00028219,17]
[391639163,1760712696692,-1000.0,0.00028219,30]
[391639164,1760712696703,-645.32,0.00028219,17]
[391639165,1760712696713,-1164.89,0.00028219,14]
[391639166,1760712696722,-4111.23,0.00028219,2]
[391639167,1760712696732,-1020.03,0.00028219,17]
[391639168,1760712696742,-2210.79,0.00028219,17]
[391639169,1760712696751,-500.0,0.00028219,17]
[391639170,1760712696761,-500.0,0.00028219,17]
[391639171,1760712696770,-1365.45,0.00028219,17]
[391639172,1760712696780,-1008.76,0.00028219,17]
[391639173,1760712696790,-1563.72,0.00028219,17]
[391639174,1760712696799,-500.0,0.00028219,17]
[391639175,1760712696809,-1294.16,0.00028219,14]
[391639176,1760712696818,-616.97,0.00028219,17]
[391639177,1760712696827,-2395.85,0.00028219,17]
[391639178,1760712696837,-1000.0,0.00028219,17]
[391639179,1760712696846,-1973.58,0.00028219,17]
[391639180,1760712697002,-2145.9,0.00028219,17]
[391639181,1760712697012,-1133.0,0.00028219,17]
[391639182,1760712697021,-897.1,0.00028219,17]
[391639183,1760712697032,-2887.99,0.00028219,17]
[391639184,1760712697042,-975.46,0.00028219,17]
[391639185,1760712697051,-475.454056,0.00028219,17]
[391639186,1760712697061,-1037.54,0.00028219,17]
[391639187,1760712697071,-500.0,0.00028219,17]
[391639188,1760712697081,-500.0,0.00028219,17]
[391639189,1760712697090,-815.66,0.00028219,17]
[391639190,1760712697099,-500.0,0.00028219,17]
[391639191,1760712697112,-500.0,0.00028219,6]
[391639192,1760712697122,-500.0,0.00028219,17]
[391639193,1760712697132,-500.0,0.00028219,17]
[391639194,1760712697142,-2321.61,0.00028219,17]
[391639195,1760712697152,-4259.73,0.00028219,17]
[391639196,1760712697162,-209.92,0.00028219,9]
[391639197,1760712697171,-500.0,0.00028219,17]
[391639198,1760712697181,-1588.12,0.00028219,17]
[391639199,1760712697191,-2127.98,0.00028219,17]
[391639200,1760712697201,-500.0,0.00028219,17]
[391639201,1760712697211,-500.0,0.00028219,17]
[391639202,1760712697221,-1336.95,0.00028219,17]
[391639203,1760712697231,-500.0,0.00028219,17]
[391639204,1760712697240,-500.0,0.00028219,17]
[391639205,1760712697249,-500.0,0.00028219,17]
[391639206,1760712697258,-168.0,0.00028258,2]
[391639207,1760712697267,-695.07,0.00028301,2]
[391639208,1760712697277,-949.32,0.00028301,2]
[391639209,1760712697286,-152.59,0.00028313,15]
[391639210,1760712697295,-1300.0,0.00028332,7]
[391639211,1760712697305,-168.0,0.00028365,2]
[391639212,1760712697314,-168.0,0.00028386,2]
[391639213,1760712697324,-152.59,0.00028413,15]
[391639214,1760712697334,-17810.34101937,0.00028455,2]
[391639215,1760712697343,-13671.34,0.00028465,10]
[391639216,1760712697354,-151.0,0.00028465,30]
[391639217,1760712697369,-151.0,0.00028465,30]
[391639218,1760712697381,-151.137295,0.00028465,30]
[391639219,1760712697392,-205.216339,0.00028465,30]
[391639220,1760712697402,-205.216339,0.00028465,30]
[391639221,1760712697413,-205.216339,0.00028465,30]
[391639222,1760712697423,-205.216333,0.00028465,30]
[391639223,1760712697433,-1199.37,0.00028478,2]
[391639224,1760712697443,-1199.37,0.00028478,2]
[391639225,1760712697453,-1199.37,0.00028478,2]
[391639226,1760712697462,-1199.37,0.00028478,2]
[391639227,1760712697473,-1199.37,0.00028478,2]
[391639228,1760712697483,-1199.37,0.00028478,2]
[391639229,1760712697493,-1199.37,0.00028478,2]
[391639230,1760712697503,-1199.37,0.00028478,2]
[391639231,1760712697512,-1199.37,0.00028478,2]
[391639232,1760712697522,-1199.37,0.00028478,2]
[391639233,1760712697531,-1199.37,0.00028478,2]
[391639234,1760712697541,-1199.37,0.00028478,2]
[391639235,1760712697551,-1199.37,0.00028478,2]
[391639236,1760712697561,-500.0,0.00028493,17]
[391639237,1760712697571,-522.4,0.00028493,17]
[391639238,1760712697581,-869.21,0.00028493,17]
[391639239,1760712697591,-1021.91,0.00028493,17]
[391639240,1760712697601,-500.0,0.00028493,17]
[391639241,1760712697619,-537.34,0.00028493,17]
[391639242,1760712697633,-1474.93,0.00028493,17]
[391639243,1760712697643,-666.77,0.00028493,17]
[391639244,1760712697653,-386.31215707,0.00028493,17]
[391639245,1760712697663,-500.0,0.00028493,2]
[391639246,1760712697673,-500.0,0.00028493,17]
[391639247,1760712697683,-975.21,0.00028493,17]
[391639248,1760712697692,-1074.19,0.00028493,17]
[391639249,1760712697703,-500.0,0.00028493,17]
[391639250,1760712697714,-1458.22,0.00028493,7]
[391639251,1760712697723,-500.0,0.00028493,17]
[391639252,1760712697733,-721.32,0.00028493,2]
[391639253,1760712697743,-505.59,0.00028493,2]
[391639254,1760712697753,-151.0,0.00028493,30]
[391639255,1760712697762,-157.253133,0.00028493,30]
[391639256,1760712697772,-152.919278,0.00028493,30]
[391639257,1760712697782,-151.0,0.00028493,30]
[391639258,1760712697792,-837.59,0.00028493,17]
[391639259,1760712697801,-151.00000049,0.00028493,30]
[391639260,1760712697811,-151.0,0.00028493,30]
[391639261,1760712697821,-151.0,0.00028493,30]
[391639262,1760712697831,-335.375095,0.00028493,30]
[391639263,1760712697841,-335.375095,0.00028493,30]
[391639264,1760712697850,-2355.17,0.00028493,17]
[391639265,1760712697866,-335.375095,0.00028493,30]
[391639266,1760712697876,-335.375103,0.00028493,30]
[391639267,1760712697885,-513.36,0.00028493,17]
[391639268,1760712697895,-500.0,0.00028493,17]
[391639269,1760712697905,-500.0,0.00028493,17]
[391639270,1760712697914,-500.0,0.00028493,17]
[391639271,1760712697924,-166.17756738,0.00028493,17]
[391639272,1760712697934,-1192.44,0.00028493,17]
[391639273,1760712697944,-654.23,0.00028493,17]
[391639274,1760712697953,-500.0,0.00028493,17]
[391639275,1760712697963,-2969.48,0.00028493,17]
[391639276,1760712697973,-500.0,0.00028493,17]
[391639277,1760712697982,-500.0,0.00028493,17]
[391639278,1760712697992,-500.17,0.00028493,17]
[391639279,1760712698001,-1595.99,0.00028493,17]
[391639280,1760712698011,-500.0,0.00028493,17]
[391639281,1760712698020,-2220.63,0.00028493,17]
[391639282,1760712698029,-500.0,0.00028493,17]
[391639283,1760712698039,-554.04,0.00028493,17]
[391639284,1760712698050,-619.82,0.00028493,17]
[391639285,1760712698061,-950.66,0.00028493,17]
[391639286,1760712698071,-1855.6,0.00028493,17]
[391639287,1760712698080,-722.3,0.00028493,17]
[391639288,1760712698091,-567.74,0.00028493,17]
[391639289,1760712698100,-500.0,0.00028493,17]
[391639290,1760712698114,-1437.69,0.00028493,17]
[391639291,1760712698124,-2212.04,0.00028493,17]
[391639292,1760712698135,-503.54211276,0.00028493,17]
[391639293,1760712698144,-1120.11,0.00028493,17]
[391639294,1760712698154,-500.0,0.00028493,17]
[391639295,1760712698164,-500.0,0.00028493,17]
[391639296,1760712698175,-500.0,0.00028493,17]
[391639297,1760712698184,-854.16,0.00028493,17]
[391639298,1760712698194,-632.58,0.00028493,17]
[391639299,1760712698204,-500.0,0.00028493,17]
[391639300,1760712698214,-870.27,0.00028493,17]
[391639301,1760712698223,-735.48,0.00028493,17]
[391639302,1760712698233,-1633.1,0.00028493,17]
[391639303,1760712698242,-500.0,0.00028493,17]
[391639304,1760712698252,-500.0,0.00028493,17]
[391639305,1760712698262,-500.0,0.00028493,17]
[391639306,1760712698272,-500.0,0.00028493,17]
[391639307,1760712698282,-852.2,0.00028493,17]
[391639308,1760712698291,-665.63,0.00028493,17]
[391639309,1760712698301,-733.45,0.00028493,17]
[391639310,1760712698310,-2292.25,0.00028493,17]
[391639311,1760712698321,-957.62,0.00028493,17]
[391639312,1760712698331,-1000.0,0.00028493,30]
[391639313,1760712698340,-645.32,0.00028493,17]
[391639314,1760712698351,-1164.89,0.00028493,14]
[391639315,1760712698362,-4111.23,0.00028493,2]
[391639316,1760712698372,-1020.03,0.00028493,17]
[391639317,1760712698382,-2210.79,0.00028493,17]
[391639318,1760712698391,-500.0,0.00028493,17]
[391639319,1760712698401,-500.0,0.00028493,17]
[391639320,1760712698411,-1365.45,0.00028493,17]
[391639321,1760712698421,-1008.76,0.00028493,17]
[391639322,1760712698430,-1563.72,0.00028493,17]
[391639323,1760712698440,-500.0,0.00028493,17]
[391639324,1760712698449,-1294.16,0.00028493,14]
[391639325,1760712698459,-616.97,0.00028493,17]
[391639326,1760712698468,-2395.85,0.00028493,17]
[391639327,1760712698478,-1973.58,0.00028493,17]
[391639328,1760712698488,-1000.0,0.00028493,17]
[391639329,1760712698497,-2145.9,0.00028493,17]
[391639330,1760712698507,-1133.0,0.00028493,17]
[391639331,1760712698516,-897.1,0.00028493,17]
[391639332,1760712698527,-2887.99,0.00028493,17]
[391639333,1760712698538,-975.46,0.00028493,17]
[391639334,1760712698548,-1037.54,0.00028493,17]
[391639335,1760712698557,-500.0,0.00028493,17]
[391639336,1760712698567,-815.66,0.00028493,17]
[391639337,1760712698576,-500.0,0.00028493,17]
[391639338,1760712698586,-500.0,0.00028493,6]
[391639339,1760712698596,-500.0,0.00028493,17]
[391639340,1760712698606,-500.0,0.00028493,17]
[391639341,1760712698624,-2321.61,0.00028493,17]
[391639342,1760712698634,-4259.73,0.00028493,17]
[391639343,1760712698643,-209.92,0.00028493,10]
[391639344,1760712698654,-500.0,0.00028493,17]
[391639345,1760712698665,-1588.12,0.00028493,17]
[391639346,1760712698675,-2127.98,0.00028493,17]
[391639347,1760712698684,-489.3,0.00028493,17]
[391639348,1760712698695,-500.0,0.00028493,17]
[391639349,1760712698705,-1336.95,0.00028493,17]
[391639350,1760712698714,-500.0,0.00028493,17]
[391639351,1760712698723,-500.0,0.00028493,17]
[391639352,1760712698732,-500.0,0.00028493,17]
[391639353,1760712698743,-305.36073993,0.00028606,2]
[391639354,1760712698752,-3000.0,0.00028606,7]
[391639355,1760712698761,-923.5,0.00028638,15]
[391639356,1760712698771,-146501.2180012,0.0002868,2]
[391639357,1760712698781,-1000.0,0.0002868,10]
[391639358,1760712698791,-1000.0,0.0002868,10]
[391639359,1760712698801,-1000.0,0.0002868,10]
[391639360,1760712698810,-1000.0,0.0002868,10]
[391639361,1760712698820,-1000.0,0.0002868,10]
[391639362,1760712698830,-1122.52660225,0.0002868,10]
[391639363,1760712698840,-1000.0,0.0002868,10]
[391639364,1760712698849,-1000.0,0.0002868,10]
[391639365,1760712698861,-1000.0,0.0002868,10]
[391639366,1760712698871,-1000.0,0.0002868,10]
[391639367,1760712698881,-1000.0,0.0002868,10]
[391639368,1760712698891,-1000.0,0.0002868,10]
[391639369,1760712698901,-1000.0,0.0002868,10]
[391639370,1760712698911,-1000.0,0.0002868,10]
[391639371,1760712698920,-166.84519916,0.00028691,2]
[391639372,1760712698930,-8957.08,0.000287,7]
[391639373,1760712698940,-168.0,0.00028706,2]
[391639374,1760712698950,-546.15,0.00028712,2]
[391639375,1760712698959,-176.05,0.00028712,2]
[391639376,1760712698970,-695.27,0.00028738,2]
[391639377,1760712698979,-695.27,0.00028738,2]
[391639378,1760712698989,-694.67,0.00028739,2]
[391639379,1760712698999,-500.0,0.00028767,17]
[391639380,1760712699009,-522.4,0.00028767,17]
[391639381,1760712699019,-869.21,0.00028767,17]
[391639382,1760712699028,-1021.91,0.00028767,17]
[391639383,1760712699037,-500.0,0.00028767,17]
[391639384,1760712699047,-537.34,0.00028767,17]
[391639385,1760712699056,-1474.93,0.00028767,17]
[391639386,1760712699066,-666.77,0.00028767,17]
[391639387,1760712699075,-173.28170098,0.00028767,2]
[391639388,1760712699375,-326.71829902,0.00028767,2]
[391639389,1760712699386,-500.0,0.00028767,17]
[391639390,1760712699396,-521.32378932,0.00028767,17]
[391639391,1760712699412,-911.177948,0.00025205,7]
[391639392,1760712699422,-453.88621068,0.00028767,17]
[391639393,1760712699432,-975.21,0.00028767,17]
[391639394,1760712699441,-1074.19,0.00028767,17]
[391639395,1760712699451,-500.0,0.00028767,17]
[391639396,1760712699461,-1341.68764132,0.00028767,7]
[391639397,1760712699472,-116.60799744,0.00028767,7]
[391639398,1760712699482,-500.0,0.00028767,17]
[391639399,1760712699492,-153.321984,0.00028767,30]
[391639400,1760712699502,-721.32,0.00028767,2]
[391639401,1760712699511,-261.602702,0.00028767,30]
[391639402,1760712699521,-505.59,0.00028767,2]
[391639403,1760712699531,-837.59,0.00028767,17]
[391639404,1760712699541,-2355.17,0.00028767,17]
[391639405,1760712699551,-513.36,0.00028767,17]
[391639406,1760712699561,-500.0,0.00028767,17]
[391639407,1760712699572,-500.0,0.00028767,17]
[391639408,1760712699582,-500.0,0.00028767,17]
[391639409,1760712699592,-1192.44,0.00028767,17]
[391639410,1760712699602,-654.23,0.00028767,17]
[391639411,1760712699614,-214.99131021,0.00028767,17]
[391639412,1760712699625,-2969.48,0.00028767,17]
[391639413,1760712699635,-500.0,0.00028767,17]
[391639414,1760712699646,-500.0,0.00028767,17]
[391639415,1760712699655,-500.17,0.00028767,17]
[391639416,1760712699666,-1595.99,0.00028767,17]
[391639417,1760712699676,-500.0,0.00028767,17]
[391639418,1760712699686,-2220.63,0.00028767,17]
[391639419,1760712699695,-500.0,0.00028767,17]
[391639420,1760712699707,-554.04,0.00028767,17]
[391639421,1760712699717,-619.82,0.00028767,17]
[391639422,1760712699726,-950.66,0.00028767,17]
[391639423,1760712699735,-1855.6,0.00028767,17]
[391639424,1760712699744,-722.3,0.00028767,17]
[391639425,1760712699754,-500.0,0.00028767,17]
[391639426,1760712699765,-1437.69,0.00028767,17]
[391639427,1760712699774,-2212.04,0.00028767,17]
[391639428,1760712699784,-1120.11,0.00028767,17]
[391639429,1760712699794,-500.0,0.00028767,17]
[391639430,1760712699803,-500.0,0.00028767,15]
[391639431,1760712699813,-536.07044612,0.00028767,15]
[391639432,1760712699823,-500.0,0.00028767,17]
[391639433,1760712699833,-500.0,0.00028767,17]
[391639434,1760712699841,-854.16,0.00028767,17]
[391639435,1760712699851,-632.58,0.00028767,17]
[391639436,1760712699865,-343.16409659,0.00028767,17]
[391639437,1760712699876,-870.27,0.00028767,17]
[391639438,1760712699885,-735.48,0.00028767,17]
[391639439,1760712699895,-1633.1,0.00028767,17]
[391639440,1760712699904,-500.0,0.00028767,17]
[391639441,1760712699914,-500.0,0.00028767,17]
[391639442,1760712699923,-500.0,0.00028767,17]
[391639443,1760712699933,-852.2,0.00028767,17]
[391639444,1760712699942,-665.63,0.00028767,17]
[391639445,1760712699951,-733.45,0.00028767,17]
[391639446,1760712699961,-2292.25,0.00028767,17]
[391639447,1760712699971,-957.62,0.00028767,17]
[391639448,1760712699981,-1000.0,0.00028767,30]
[391639449,1760712699990,-645.32,0.00028767,17]
[391639450,1760712699999,-1164.89,0.00028767,14]
[391639451,1760712700008,-4111.23,0.00028767,2]
[391639452,1760712700018,-1020.03,0.00028767,17]
[391639453,1760712700028,-2210.79,0.00028767,17]
[391639454,1760712700039,-640.06401805,0.00028767,17]
[391639455,1760712700049,-405.18985845,0.00028767,17]
[391639456,1760712700059,-1365.45,0.00028767,17]
[391639457,1760712700069,-1008.76,0.00028767,17]
[391639458,1760712700079,-1563.72,0.00028767,17]
[391639459,1760712700088,-511.77503207,0.00028767,17]
[391639460,1760712700097,-1294.16,0.00028767,14]
[391639461,1760712700107,-616.97,0.00028767,17]
[391639462,1760712700118,-2395.85,0.00028767,17]
[391639463,1760712700128,-1973.58,0.00028767,17]
[391639464,1760712700138,-1000.0,0.00028767,17]
[391639465,1760712700147,-2145.9,0.00028767,17]
[391639466,1760712700156,-1133.0,0.00028767,17]
[391639467,1760712700166,-897.1,0.00028767,17]
[391639468,1760712700175,-2887.99,0.00028767,17]
[391639469,1760712700185,-975.46,0.00028767,17]
[391639470,1760712700195,-1037.54,0.00028767,17]
[391639471,1760712700204,-500.0,0.00028767,17]
[391639472,1760712700213,-815.66,0.00028767,17]
[391639473,1760712700223,-500.0,0.00028767,17]
[391639474,1760712700232,-500.0,0.00028767,6]
[391639475,1760712700242,-410.67933785,0.00028767,17]
[391639476,1760712700251,-500.0,0.00028767,17]
[391639477,1760712700260,-2321.61,0.00028767,17]
[391639478,1760712700270,-4259.73,0.00028767,17]
[391639479,1760712700279,-209.92,0.00028767,11]
[391639480,1760712700289,-500.0,0.00028767,17]
[391639481,1760712700299,-1588.12,0.00028767,17]
[391639482,1760712700308,-2127.98,0.00028767,17]
[391639483,1760712700318,-1336.95,0.00028767,17]
[391639484,1760712700327,-500.0,0.00028767,17]
[391639485,1760712700336,-500.0,0.00028767,17]
[391639486,1760712700345,-500.0,0.00028767,17]
[391639487,1760712700355,-500.0,0.00028767,17]
[391639488,1760712700367,-1261.4078763,0.00028768,2]
[391639489,1760712700376,-2780.06,0.000288,7]
[391639490,1760712700385,-2784.74,0.000288,2]
[391639491,1760712700395,-24566.88,0.000288,2]
[391639492,1760712700405,-246.805787,0.000288,30]
[391639493,1760712700415,-151.0,0.000288,30]
[391639494,1760712700424,-25000.0,0.00028832,10]
[391639495,1760712700434,-500.0,0.00028844,120]
[391639496,1760712700443,-2000.0,0.00028844,120]
[391639497,1760712700453,-500.0,0.00028844,120]
[391639498,1760712700463,-500.0,0.00028844,120]
[391639499,1760712700473,-1100.0,0.0002888,7]
[391639500,1760712700483,-30587.94064785,0.00029,12]
[391639501,1760712700493,-1000.0,0.00029,2]
[391639502,1760712700502,-163.0,0.00029,30]
[391639503,1760712700511,-300.0,0.00029,2]